bitfinex-derivatives/quotes_BTCF0:USTF0_20251111
["timestamp","ask_amount","ask_price","bid_price","bid_amount"]
[1762847582859,0.0375,104810.0,104800.0,1.21164067]
[1762847583260,0.01494,104810.0,104800.0,1.21164067]
[1762847583664,0.01594,104810.0,104800.0,1.21164067]
[1762847584870,0.001,104810.0,104800.0,1.44816067]
[1762847585071,0.01408314,104820.0,104810.0,0.0954421]
[1762847585273,0.01408314,104820.0,104810.0,0.79981283]
[1762847585579,0.01408314,104820.0,104810.0,0.94225167]
[1762847585778,0.00014314,104820.0,104810.0,0.79914696]
[1762847586077,0.00014314,104820.0,104810.0,1.03766696]
[1762847586378,0.00214314,104820.0,104810.0,1.03866696]
[1762847586678,0.00214314,104820.0,104810.0,0.80014696]
[1762847586881,0.00214314,104820.0,104810.0,1.15829843]
[1762847587374,0.01279,104840.0,104830.0,0.0954239]
[1762847587573,0.4936848,104840.0,104830.0,0.46222193]
[1762847587774,0.39827,104840.0,104830.0,0.60516865]
[1762847588476,0.39827,104840.0,104830.0,0.99055664]
[1762847588672,0.40127,104840.0,104830.0,0.99155664]
[1762847588879,0.40427,104840.0,104830.0,1.24484081]
[1762847589073,0.35879,104840.0,104830.0,1.24484081]
[1762847589272,0.35879,104840.0,104830.0,1.12520934]
[1762847590173,0.35879,104840.0,104830.0,1.11520934]
[1762847590378,0.38135,104840.0,104830.0,1.11520934]
[1762847591278,0.38135,104840.0,104830.0,1.23516294]
[1762847591480,0.40427,104840.0,104830.0,0.82151024]
[1762847591974,0.42427,104840.0,104830.0,1.07151024]
[1762847592675,0.42427,104840.0,104830.0,0.82151024]
[1762847592882,0.42427,104840.0,104830.0,0.95516294]
[1762847593079,0.42427,104840.0,104830.0,0.82151024]
[1762847593275,0.42427,104840.0,104830.0,0.70155664]
[1762847594583,0.42427,104840.0,104830.0,0.33695664]
[1762847594881,0.6533375,104840.0,104830.0,0.26609835]
[1762847595085,0.6533375,104840.0,104830.0,0.72600225]
[1762847595285,0.6533375,104840.0,104830.0,0.60604865]
[1762847595479,0.6533375,104840.0,104830.0,0.50842672]
[1762847595785,0.6533375,104840.0,104830.0,0.36767803]
[1762847596683,0.6533375,104840.0,104830.0,0.36548]
[1762847597782,0.1548439,104830.0,104820.0,0.00014314]
[1762847597986,0.6084966,104830.0,104820.0,0.36458314]
[1762847598284,0.1548621,104810.0,104800.0,0.29037128]
[1762847598485,0.36942,104810.0,104800.0,0.65700931]
[1762847598689,0.36942,104810.0,104800.0,0.80035538]
[1762847599074,0.5985148,104810.0,104800.0,0.14334607]
[1762847599281,0.05942,104800.0,104790.0,0.58015194]
[1762847599484,0.42942,104800.0,104790.0,0.46239637]
[1762847599682,0.5248712,104800.0,104790.0,0.60477335]
[1762847600194,0.6585239,104800.0,104790.0,0.50931815]
[1762847600386,0.5248712,104800.0,104790.0,0.60477845]
[1762847600685,0.5258712,104800.0,104790.0,0.60577845]
[1762847601188,0.6595239,104800.0,104790.0,0.51031815]
[1762847601488,0.6595239,104800.0,104790.0,0.36794117]
[1762847601689,0.6595239,104800.0,104790.0,0.00114314]
[1762847601888,0.6615239,104800.0,104790.0,0.00114314]
[1762847602085,0.6615239,104800.0,104790.0,3.14e-06]
[1762847602284,0.1548003,104790.0,104780.0,0.43929928]
[1762847602484,0.4948003,104790.0,104780.0,0.53696671]
[1762847602684,0.39934,104790.0,104780.0,0.53696671]
[1762847603285,0.4948003,104790.0,104780.0,0.53696671]
[1762847603483,0.4958003,104790.0,104780.0,0.53796671]
[1762847603892,0.40034,104790.0,104780.0,0.53796671]
[1762847604390,0.4958003,104790.0,104780.0,0.53796671]
[1762847604585,0.4968003,104790.0,104780.0,0.53796671]
[1762847606587,0.40134,104790.0,104780.0,0.53796671]
[1762847608091,0.40134,104790.0,104780.0,0.8148685]
[1762847608286,0.40134,104790.0,104780.0,1.170302]
[1762847608486,0.40134,104790.0,104780.0,0.910302]
[1762847609094,0.40134,104790.0,104780.0,1.030302]
[1762847609395,0.40134,104790.0,104780.0,1.180302]
[1762847609792,0.630453,104790.0,104780.0,0.5855864]
[1762847610399,0.4968003,104790.0,104780.0,0.5855864]
[1762847611285,0.630453,104790.0,104780.0,0.5855864]
[1762847613493,0.4968003,104790.0,104780.0,0.6810559]
[1762847613993,0.630453,104790.0,104780.0,0.5855864]
[1762847614787,0.630453,104790.0,104780.0,0.44233731]
[1762847614989,0.69282602,104790.0,104780.0,0.44233731]
[1762847615196,0.69282602,104790.0,104780.0,0.44229731]
[1762847615397,0.4968003,104790.0,104780.0,0.44229731]
[1762847617293,0.69282602,104790.0,104780.0,0.44229731]
[1762847617688,0.69282602,104790.0,104780.0,0.53776671]
[1762847618593,0.4968003,104790.0,104780.0,0.53776671]
[1762847618793,0.40134,104790.0,104780.0,0.68040481]
[1762847620197,0.40134,104790.0,104780.0,0.81040481]
[1762847620395,0.40134,104790.0,104780.0,0.68040481]
[1762847622698,0.40134,104790.0,104780.0,0.97040481]
[1762847622898,0.40134,104790.0,104780.0,1.06583831]
[1762847624394,0.40134,104790.0,104780.0,1.18579191]
[1762847625598,0.40134,104790.0,104780.0,1.06583831]
[1762847626405,0.40134,104790.0,104780.0,1.18579191]
[1762847626601,0.40134,104790.0,104780.0,0.89579191]
[1762847627906,0.40134,104790.0,104780.0,1.02579191]
[1762847628105,0.40134,104790.0,104780.0,1.15579191]
[1762847628305,0.40134,104790.0,104780.0,1.03583831]
[1762847628706,0.37821,104790.0,104780.0,1.23186403]
[1762847628907,0.40042,104790.0,104780.0,1.03583831]
[1762847629302,0.40042,104790.0,104780.0,1.15579191]
[1762847629604,0.4958803,104790.0,104780.0,0.89579191]
[1762847629803,0.40042,104790.0,104780.0,0.77583831]
[1762847630308,0.4958803,104790.0,104780.0,0.68040481]
[1762847630601,0.40042,104790.0,104780.0,0.68040481]
[1762847631706,0.40042,104790.0,104780.0,0.80040481]
[1762847632107,0.40042,104790.0,104780.0,0.68040481]
[1762847632309,0.40042,104790.0,104780.0,0.96040481]
[1762847633211,0.40042,104790.0,104780.0,1.08035841]
[1762847634707,0.40042,104790.0,104780.0,0.80035841]
[1762847635611,0.4958804,104790.0,104780.0,0.68040481]
[1762847636200,0.4958804,104790.0,104780.0,0.68040491]
[1762847636805,0.40042,104790.0,104780.0,0.68040491]
[1762847637206,0.4958804,104790.0,104780.0,0.68040491]
[1762847637412,0.40042,104790.0,104780.0,0.68040491]
[1762847638305,0.40042,104790.0,104780.0,0.95040491]
[1762847639511,0.40042,104790.0,104780.0,0.68040491]
[1762847639713,0.40042,104790.0,104780.0,0.82040491]
[1762847640312,0.40042,104790.0,104780.0,1.10730051]
[1762847640510,0.40042,104790.0,104780.0,1.20273401]
[1762847641019,0.01353314,104800.0,104790.0,0.0954603]
[1762847641205,0.00014314,104800.0,104790.0,0.72311393]
[1762847641404,0.01394,104810.0,104800.0,0.0954512]
[1762847641604,0.27655,104810.0,104800.0,0.72862483]
[1762847641806,0.27655,104810.0,104800.0,0.99218833]
[1762847642002,0.27655,104810.0,104800.0,1.13218833]
[1762847642310,0.25394,104810.0,104800.0,1.22762183]
[1762847642613,0.25394,104810.0,104800.0,1.1075854]
[1762847642809,0.25394,104810.0,104800.0,1.19653791]
[1762847643403,0.25394,104810.0,104800.0,1.3164383]
[1762847643809,0.25494,104810.0,104800.0,1.3174383]
[1762847644001,0.29944,104810.0,104800.0,1.12159019]
[1762847644311,0.29944,104810.0,104800.0,0.84159019]
[1762847644511,0.29944,104810.0,104800.0,1.14159019]
[1762847644719,0.29944,104810.0,104800.0,0.84159019]
[1762847645111,0.29944,104810.0,104800.0,0.82159019]
[1762847645313,0.29944,104810.0,104800.0,1.10159019]
[1762847645509,0.29944,104810.0,104800.0,1.12159019]
[1762847645710,0.29944,104810.0,104800.0,0.82159019]
[1762847645910,0.29944,104810.0,104800.0,0.84159019]
[1762847646713,0.29944,104810.0,104800.0,0.82159019]
[1762847646919,0.3948821,104810.0,104800.0,0.36205899]
[1762847647111,0.3948821,104810.0,104800.0,0.63054549]
[1762847647421,0.3948821,104810.0,104800.0,0.72599669]
[1762847647818,0.3948821,104810.0,104800.0,0.6060963]
[1762847648316,0.3948821,104810.0,104800.0,0.5106451]
[1762847648816,0.29944,104810.0,104800.0,0.6060963]
[1762847649815,0.3948821,104810.0,104800.0,0.6060963]
[1762847651010,0.29944,104810.0,104800.0,0.6060963]
[1762847651311,0.3948821,104810.0,104800.0,0.6060963]
[1762847654313,0.29944,104810.0,104800.0,0.6060963]
[1762847654513,0.3948821,104810.0,104800.0,0.6060963]
[1762847654707,0.29944,104810.0,104800.0,0.6060963]
[1762847654918,0.3948821,104810.0,104800.0,0.6060963]
[1762847657621,0.29944,104810.0,104800.0,0.6060963]
[1762847658117,0.29944,104810.0,104800.0,0.7260963]
[1762847658319,0.29944,104810.0,104800.0,0.9060963]
[1762847658519,0.27755,104810.0,104800.0,1.00151159]
[1762847658823,0.25494,104810.0,104800.0,1.00151159]
[1762847659324,0.25494,104810.0,104800.0,1.12141198]
[1762847659626,0.25494,104810.0,104800.0,1.31726009]
[1762847661019,0.001,104810.0,104800.0,1.31726009]
[1762847661418,0.001,104810.0,104800.0,1.55578009]
[1762847661619,0.01408314,104820.0,104810.0,0.0954421]
[1762847661821,0.32014314,104820.0,104810.0,0.7333428]
[1762847662023,0.01014314,104820.0,104810.0,1.11512061]
[1762847662224,0.28014314,104820.0,104810.0,1.09068134]
[1762847662520,0.01014314,104820.0,104810.0,1.09068134]
[1762847662717,0.01339,104840.0,104820.0,0.095433]
[1762847662917,0.38525,104840.0,104830.0,0.56807369]
[1762847663222,0.36339,104840.0,104830.0,1.22556162]
[1762847664823,0.36539,104840.0,104830.0,1.19473645]
[1762847665119,0.354,104840.0,104830.0,1.19473645]
[1762847665430,0.354,104840.0,104830.0,1.43321645]
[1762847665820,0.354,104840.0,104830.0,1.43421645]
[1762847666022,0.36679,104840.0,104830.0,1.43421645]
[1762847666527,0.36579,104840.0,104830.0,1.43421645]
[1762847666829,0.36579,104840.0,104830.0,1.19573645]
[1762847667023,0.36579,104840.0,104830.0,1.43421645]
[1762847667329,0.41093,104840.0,104830.0,1.19573645]
[1762847667721,0.40993,104840.0,104830.0,1.19573645]
[1762847670524,0.38665,104840.0,104830.0,1.55399999]
[1762847670834,0.38665,104840.0,104830.0,1.19573645]
[1762847671124,0.36479,104840.0,104830.0,0.83205645]
[1762847671431,0.36479,104840.0,104830.0,1.19565645]
[1762847672130,0.36479,104840.0,104830.0,1.51106874]
[1762847672131,0.06583928,104840.0,104830.0,1.51106874]
[1762847672333,0.042,104840.0,104830.0,1.51106874]
[1762847672631,0.042,104840.0,104830.0,1.63085228]
[1762847672822,0.28479,104840.0,104830.0,1.51106874]
[1762847673023,0.28479,104840.0,104830.0,0.31783471]
[1762847673024,0.4253448,104840.0,104830.0,0.31783471]
[1762847673224,0.1533539,104830.0,104820.0,0.00014314]
[1762847673423,0.153363,104820.0,104810.0,8.749e-05]
[1762847673730,0.41793,104820.0,104810.0,0.24082481]
[1762847673929,0.513363,104820.0,104810.0,0.14538271]
[1762847675230,0.514363,104820.0,104810.0,0.14738271]
[1762847675930,0.41893,104820.0,104810.0,0.24282481]
[1762847676128,0.41893,104820.0,104810.0,0.24382481]
[1762847676630,0.41893,104820.0,104810.0,0.68396113]
[1762847676631,0.35993,104820.0,104810.0,0.68396113]
[1762847676834,0.09665,104820.0,104810.0,0.80172925]
[1762847677033,0.40893,104820.0,104810.0,0.336231]
[1762847677238,0.06093,104820.0,104810.0,0.47072925]
[1762847677440,0.41093,104820.0,104810.0,0.74072925]
[1762847677646,0.35993,104820.0,104810.0,0.47072925]
[1762847677845,0.35793,104820.0,104810.0,0.58072925]
[1762847678144,0.35893,104820.0,104810.0,0.47272925]
[1762847678545,0.35893,104820.0,104810.0,0.74272925]
[1762847678749,0.35893,104820.0,104810.0,0.47272925]
[1762847679344,0.35893,104820.0,104810.0,0.45901454]
[1762847679534,0.35893,104820.0,104810.0,0.702911]
[1762847679932,0.35893,104820.0,104810.0,0.812911]
[1762847680136,0.35893,104820.0,104810.0,0.702911]
[1762847680338,0.35893,104820.0,104810.0,0.832911]
[1762847680537,0.35893,104820.0,104810.0,1.012911]
[1762847680733,0.35893,104820.0,104810.0,1.13269454]
[1762847681040,0.35893,104820.0,104810.0,1.26619279]
[1762847681642,0.09565,104820.0,104810.0,1.26619279]
[1762847681848,0.08379,104820.0,104810.0,1.26619279]
[1762847682343,0.37565,104820.0,104810.0,1.14640925]
[1762847683247,0.39893,104820.0,104810.0,1.14640925]
[1762847685349,0.37565,104820.0,104810.0,1.14640925]
[1762847686347,0.09565,104820.0,104810.0,1.14640925]
[1762847686551,0.08565,104820.0,104810.0,1.14640925]
[1762847686753,0.09565,104820.0,104810.0,1.14640925]
[1762847686952,0.06565,104820.0,104810.0,1.14640925]
[1762847687138,0.03565,104820.0,104810.0,1.14640925]
[1762847687343,0.30565,104820.0,104810.0,1.14640925]
[1762847688256,0.06565,104820.0,104810.0,1.14640925]
[1762847688456,0.37893,104820.0,104810.0,1.14640925]
[1762847688947,0.05893,104820.0,104810.0,1.14640925]
[1762847689254,0.08893,104820.0,104810.0,1.14640925]
[1762847689456,0.39893,104820.0,104810.0,1.14640925]
[1762847690451,0.05893,104820.0,104810.0,1.14640925]
[1762847690660,0.39893,104820.0,104810.0,1.14640925]
[1762847690850,0.39893,104820.0,104810.0,1.11971119]
[1762847691345,0.39893,104820.0,104810.0,1.23949473]
[1762847691650,0.39893,104820.0,104810.0,1.11971119]
[1762847691855,0.39893,104820.0,104810.0,1.23945856]
[1762847692046,0.38893,104820.0,104810.0,1.23945856]
[1762847692245,0.05893,104820.0,104810.0,1.23945856]
[1762847692646,0.08893,104820.0,104810.0,1.23945856]
[1762847693452,0.41893,104820.0,104810.0,1.23945856]
[1762847693654,0.05893,104820.0,104810.0,1.23945856]
[1762847693856,0.38893,104820.0,104810.0,1.23945856]
[1762847694255,0.08893,104820.0,104810.0,1.23945856]
[1762847694458,0.01293314,104830.0,104810.0,1.58477875]
[1762847694755,0.03528314,104830.0,104820.0,0.30903338]
[1762847695057,0.05802314,104830.0,104820.0,0.9460419]
[1762847695253,0.42802314,104830.0,104820.0,1.1845219]
[1762847695462,0.05802314,104830.0,104820.0,1.27992809]
[1762847695650,0.33802314,104830.0,104820.0,1.04144809]
[1762847696051,0.25802314,104830.0,104820.0,1.04144809]
[1762847696452,0.27902314,104830.0,104820.0,1.27992809]
[1762847696653,0.05902314,104830.0,104820.0,0.86991503]
[1762847696853,0.36902314,104830.0,104820.0,0.86991503]
[1762847697148,0.36802314,104830.0,104820.0,0.9396725]
[1762847697348,0.36902314,104830.0,104820.0,1.03447503]
[1762847697550,0.36902314,104830.0,104820.0,1.36600809]
[1762847699458,0.36902314,104830.0,104820.0,0.9792079]
[1762847699660,0.36902314,104830.0,104820.0,1.09902264]
[1762847699861,0.36902314,104830.0,104820.0,0.92748958]
[1762847700059,0.36902314,104830.0,104820.0,0.80767484]
[1762847700255,0.36902314,104830.0,104820.0,0.44411484]
[1762847700461,0.47582333,104830.0,104820.0,0.70087465]
[1762847700667,0.47582333,104830.0,104820.0,0.80767484]
[1762847701369,0.57124723,104830.0,104820.0,0.60546846]
[1762847701565,0.36902314,104830.0,104820.0,0.60546846]
[1762847701775,0.47582333,104830.0,104820.0,0.71226865]
[1762847702766,0.47582333,104830.0,104820.0,0.83208339]
[1762847702968,0.36902314,104830.0,104820.0,0.7252832]
[1762847704467,0.36902314,104830.0,104820.0,0.60546846]
[1762847704665,0.46444704,104830.0,104820.0,0.51003546]
[1762847704967,0.46444704,104830.0,104820.0,0.72541418]
[1762847706762,0.36902314,104830.0,104820.0,0.72541418]
[1762847706967,0.46444704,104830.0,104820.0,0.60546846]
[1762847707568,0.36902314,104830.0,104820.0,0.60546846]
[1762847708574,0.36902314,104830.0,104820.0,0.72541418]
[1762847709274,0.36902314,104830.0,104820.0,0.60546846]
[1762847709275,0.46444704,104830.0,104820.0,0.60546846]
[1762847709471,0.46444704,104830.0,104820.0,0.72546278]
[1762847710269,0.36902314,104830.0,104820.0,0.72546278]
[1762847710572,0.46444704,104830.0,104820.0,0.72546278]
[1762847711168,0.36902314,104830.0,104820.0,0.72546278]
[1762847711768,0.36902314,104830.0,104820.0,0.86546278]
[1762847712164,0.36902314,104830.0,104820.0,0.60546846]
[1762847712664,0.36902314,104830.0,104820.0,0.73546846]
[1762847712866,0.36902314,104830.0,104820.0,1.11437933]
[1762847713562,0.36902314,104830.0,104820.0,1.28591239]
[1762847713870,0.36902314,104830.0,104820.0,1.00591239]
[1762847714068,0.36902314,104830.0,104820.0,1.14591239]
[1762847714372,0.36902314,104830.0,104820.0,1.00591239]
[1762847714569,0.36902314,104830.0,104820.0,0.70086555]
[1762847714771,0.36902314,104830.0,104820.0,0.83437933]
[1762847715867,0.36902314,104830.0,104820.0,0.94437933]
[1762847716074,0.36902314,104830.0,104820.0,0.83437933]
[1762847716970,0.36902314,104830.0,104820.0,0.96437933]
[1762847717163,0.36902314,104830.0,104820.0,1.11437933]
[1762847717868,0.34628314,104830.0,104820.0,1.11437933]
[1762847718069,0.36920314,104830.0,104820.0,1.23435672]
[1762847718467,0.36920314,104830.0,104820.0,1.28591239]
[1762847718667,0.03628314,104830.0,104820.0,1.28591239]
[1762847718977,0.05783,104850.0,104840.0,0.0954149]
[1762847719175,0.39783,104850.0,104840.0,0.87468671]
[1762847719378,0.39783,104850.0,104840.0,1.18931763]
[1762847719678,0.39783,104850.0,104840.0,1.28469652]
[1762847720175,0.39983,104850.0,104840.0,1.28469652]
[1762847720877,0.40183,104850.0,104840.0,1.28569652]
[1762847721377,0.344,104850.0,104840.0,1.28569652]
[1762847721569,0.03550314,104860.0,104850.0,0.0954057]
[1762847721767,0.01325314,104860.0,104850.0,0.68265057]
[1762847722073,0.35325314,104860.0,104850.0,1.04791674]
[1762847722272,0.01325314,104860.0,104850.0,1.14329563]
[1762847722572,0.01325314,104860.0,104850.0,1.21020257]
[1762847722773,0.00214314,104860.0,104850.0,1.38120763]
[1762847723173,0.00214314,104860.0,104850.0,1.15965775]
[1762847723473,0.01283,104870.0,104860.0,0.0953966]
[1762847723773,0.01283,104880.0,104870.0,0.0953875]
[1762847724079,0.39694,104880.0,104870.0,0.68479698]
[1762847724472,0.39694,104880.0,104870.0,0.80432308]
[1762847724672,0.39694,104880.0,104870.0,0.89967468]
[1762847724976,0.39694,104880.0,104870.0,0.72967468]
[1762847725378,0.39894,104880.0,104870.0,0.73067468]
[1762847725575,0.39894,104880.0,104870.0,0.3617734]
[1762847725777,0.39894,104880.0,104870.0,0.7252893]
[1762847726578,0.39894,104880.0,104870.0,0.69106677]
[1762847726780,0.40094,104880.0,104870.0,1.09415468]
[1762847726981,0.40094,104880.0,104870.0,0.95415468]
[1762847727181,0.40094,104880.0,104870.0,0.83462858]
[1762847727379,0.40094,104880.0,104870.0,0.91989417]
[1762847727681,0.40094,104880.0,104870.0,1.17989417]
[1762847729386,0.40094,104880.0,104870.0,1.04989417]
[1762847729780,0.40094,104880.0,104870.0,0.91989417]
[1762847729980,0.40094,104880.0,104870.0,1.16989417]
[1762847730684,0.40094,104880.0,104870.0,1.08462858]
[1762847731682,0.35683,104880.0,104870.0,1.08462858]
[1762847731883,0.004,104880.0,104870.0,1.08462858]
[1762847732084,0.38098,104880.0,104870.0,1.20415468]
[1762847732393,0.38098,104880.0,104870.0,0.42278263]
[1762847732680,0.37898,104880.0,104870.0,0.6057632]
[1762847733085,0.37798,104880.0,104870.0,0.8947632]
[1762847733286,0.37798,104880.0,104870.0,0.73827698]
[1762847733482,0.37798,104880.0,104870.0,0.6047632]
[1762847733699,0.37798,104880.0,104870.0,0.5093757]
[1762847733896,0.37798,104880.0,104870.0,0.6047632]
[1762847734096,0.37798,104880.0,104870.0,0.7247632]
[1762847734286,0.37798,104880.0,104870.0,1.04827698]
[1762847734488,0.37798,104880.0,104870.0,1.14362858]
[1762847734894,0.37798,104880.0,104870.0,1.0101148]
[1762847735194,0.37798,104880.0,104870.0,0.83362858]
[1762847735797,0.37798,104880.0,104870.0,0.6047632]
[1762847735995,0.37798,104880.0,104870.0,0.9147632]
[1762847736189,0.37798,104880.0,104870.0,1.14362858]
[1762847736800,0.37798,104880.0,104870.0,1.22877641]
[1762847736995,0.37798,104880.0,104870.0,1.29083923]
[1762847738405,0.36798,104880.0,104870.0,1.29083923]
[1762847738593,0.40798,104880.0,104870.0,1.29083923]
[1762847739695,0.40798,104880.0,104870.0,1.00083923]
[1762847739896,0.40798,104880.0,104870.0,0.80526263]
[1762847740500,0.40798,104880.0,104870.0,1.09526263]
[1762847742697,0.40798,104880.0,104870.0,0.78526263]
[1762847743705,0.40798,104880.0,104870.0,1.07526263]
[1762847745293,0.40798,104880.0,104870.0,1.03526263]
[1762847746502,0.40798,104880.0,104870.0,0.9501148]
[1762847746704,0.40798,104880.0,104870.0,1.0696409]
[1762847747209,0.40798,104880.0,104870.0,0.9501148]
[1762847747502,0.40798,104880.0,104870.0,1.1456914]
[1762847748605,0.40798,104880.0,104870.0,1.2652175]
[1762847750695,0.40798,104880.0,104870.0,1.1456914]
[1762847751305,0.15798,104880.0,104870.0,1.1456914]
[1762847751503,0.16798,104880.0,104870.0,1.1456914]
[1762847751704,0.33387,104880.0,104870.0,1.1456914]
[1762847751907,0.33387,104880.0,104870.0,1.31669646]
[1762847752094,0.16640457,104880.0,104870.0,1.31669646]
[1762847752405,0.18809457,104880.0,104870.0,1.31669646]
[1762847752599,0.38446,104880.0,104870.0,1.31669646]
[1762847752798,0.01277,104880.0,104870.0,1.31669646]
[1762847753000,0.05277,104880.0,104870.0,1.31669646]
[1762847753506,0.05277,104880.0,104870.0,1.1456914]
[1762847753907,0.32277,104880.0,104870.0,1.3840514]
[1762847754105,0.32277,104880.0,104870.0,1.1456914]
[1762847754504,0.32277,104880.0,104870.0,1.3840514]
[1762847754702,0.32277,104880.0,104870.0,1.1456914]
[1762847754910,0.07277,104880.0,104870.0,1.1456914]
[1762847755107,0.40446,104880.0,104870.0,1.1456914]
[1762847755409,0.40446,104880.0,104870.0,1.3840514]
[1762847755603,0.42596,104880.0,104870.0,1.1456914]
[1762847755798,0.42596,104880.0,104870.0,0.9501148]
[1762847755999,0.42596,104880.0,104870.0,1.07010121]
[1762847758906,0.35596,104880.0,104870.0,1.07010121]
[1762847759718,0.35596,104880.0,104870.0,1.26567781]
[1762847760913,0.35596,104880.0,104870.0,1.05679709]
[1762847761214,0.35596,104880.0,104870.0,0.3366348]
[1762847761408,0.55802069,104880.0,104870.0,0.6045673]
[1762847761610,0.55802069,104880.0,104870.0,0.72455371]
[1762847761909,0.55802069,104880.0,104870.0,0.62920211]
[1762847762108,0.55802069,104880.0,104870.0,0.5092157]
[1762847762906,0.55802069,104880.0,104870.0,0.62920211]
[1762847763210,0.55802069,104880.0,104870.0,0.5092157]
[1762847763513,0.55802069,104880.0,104870.0,0.6046032]
[1762847765209,0.46264229,104880.0,104870.0,0.6046032]
[1762847765420,0.55802069,104880.0,104870.0,0.6046032]
[1762847765915,0.46264229,104880.0,104870.0,0.6046032]
[1762847766217,0.35596,104880.0,104870.0,0.6046032]
[1762847767211,0.35596,104880.0,104870.0,0.7146032]
[1762847767419,0.35596,104880.0,104870.0,0.6046032]
[1762847768413,0.55802069,104880.0,104870.0,0.5092157]
[1762847769018,0.55802069,104880.0,104870.0,0.6046032]
[1762847769315,0.55802069,104880.0,104870.0,0.5092157]
[1762847769821,0.55802069,104880.0,104870.0,0.6046032]
[1762847770004,0.46264229,104880.0,104870.0,0.6046032]
[1762847770405,0.55802069,104880.0,104870.0,0.5092157]
[1762847771008,0.55802069,104880.0,104870.0,0.6046032]
[1762847772511,0.55802069,104880.0,104870.0,0.5092157]
[1762847772820,0.55802069,104880.0,104870.0,0.6046033]
[1762847773510,0.55802069,104880.0,104870.0,0.5092157]
[1762847774006,0.55802069,104880.0,104870.0,0.36551803]
[1762847774721,0.1531675,104870.0,104860.0,0.00014314]
[1762847775017,0.1531766,104860.0,104850.0,0.11998641]
[1762847775218,0.61985889,104860.0,104850.0,0.48334641]
[1762847776217,0.1531857,104850.0,104840.0,0.65425375]
[1762847776418,0.59986799,104850.0,104840.0,0.65645178]
[1762847776623,0.59986799,104850.0,104840.0,0.79891146]
[1762847776919,0.59986799,104850.0,104840.0,0.70144505]
[1762847778114,0.60086799,104850.0,104840.0,0.70344505]
[1762847778316,0.60086799,104850.0,104840.0,0.70444505]
[1762847778516,0.60086799,104850.0,104840.0,0.72720505]
[1762847779710,0.39878,104850.0,104840.0,0.72720505]
[1762847780614,0.4941857,104850.0,104840.0,0.72720505]
[1762847780823,0.39878,104850.0,104840.0,0.72720505]
[1762847781023,0.39878,104850.0,104840.0,0.84720505]
[1762847781225,0.39878,104850.0,104840.0,0.72720505]
[1762847781826,0.39878,104850.0,104840.0,1.13388734]
[1762847782026,0.39878,104850.0,104840.0,0.83388734]
[1762847782325,0.39878,104850.0,104840.0,1.32925264]
[1762847782727,0.39878,104850.0,104840.0,1.04925264]
[1762847783120,0.4941857,104850.0,104840.0,0.84715985]
[1762847783318,0.4941857,104850.0,104840.0,0.94257465]
[1762847783520,0.38358,104850.0,104840.0,1.04925694]
[1762847783717,0.38358,104850.0,104840.0,1.04927053]
[1762847784320,0.39722,104850.0,104840.0,0.92927053]
[1762847784724,0.4926257,104850.0,104840.0,0.72717344]
[1762847785127,0.39722,104850.0,104840.0,0.82258824]
[1762847785323,0.4926257,104850.0,104840.0,0.82258824]
[1762847785520,0.4926257,104850.0,104840.0,0.72717344]
[1762847786130,0.4926257,104850.0,104840.0,0.82258824]
[1762847786328,0.59930799,104850.0,104840.0,0.60903455]
[1762847786527,0.59930799,104850.0,104840.0,0.58651455]
[1762847787226,0.59930799,104850.0,104840.0,0.60906455]
[1762847787424,0.59930799,104850.0,104840.0,0.70447935]
[1762847787630,0.50390229,104850.0,104840.0,0.72773935]
[1762847787827,0.59930799,104850.0,104840.0,0.72773935]
[1762847789933,0.59930799,104850.0,104840.0,0.84772576]
[1762847790118,0.59930799,104850.0,104840.0,0.75231096]
[1762847790324,0.59930799,104850.0,104840.0,0.68192935]
[1762847790524,0.59930799,104850.0,104840.0,0.72773935]
[1762847790730,0.50390229,104850.0,104840.0,0.72773935]
[1762847791234,0.59930799,104850.0,104840.0,0.72773935]
[1762847791532,0.50390229,104850.0,104840.0,0.72773935]
[1762847792627,0.50390229,104850.0,104840.0,0.99773935]
[1762847793035,0.39722,104850.0,104840.0,0.72773935]
[1762847793533,0.50390229,104850.0,104840.0,0.72773935]
[1762847793736,0.50390229,104850.0,104840.0,0.83773935]
[1762847794036,0.50390229,104850.0,104840.0,0.99773935]
[1762847794435,0.50390229,104850.0,104840.0,0.72773935]
[1762847794636,0.50390229,104850.0,104840.0,0.86773935]
[1762847796338,0.50390229,104850.0,104840.0,0.72773935]
[1762847796339,0.39722,104850.0,104840.0,0.72773935]
[1762847796635,0.39722,104850.0,104840.0,0.97773935]
[1762847798437,0.39722,104850.0,104840.0,1.08442164]
[1762847798637,0.38358,104850.0,104840.0,1.17980053]
[1762847798840,0.38358,104850.0,104840.0,1.06119453]
[1762847799140,0.39722,104850.0,104840.0,1.16985699]
[1762847799441,0.50397234,104850.0,104840.0,1.16985699]
[1762847800037,0.50397234,104850.0,104840.0,1.04985699]
[1762847800236,0.50397234,104850.0,104840.0,1.31985699]
[1762847800543,0.50397234,104850.0,104840.0,1.19987058]
[1762847801033,0.39722,104850.0,104840.0,0.82311824]
[1762847801341,0.50397234,104850.0,104840.0,0.92987058]
[1762847801540,0.50397234,104850.0,104840.0,1.16986836]
[1762847801844,0.38358,104850.0,104840.0,1.33986836]
[1762847802942,0.39722,104850.0,104840.0,1.04986836]
[1762847803143,0.50397234,104850.0,104840.0,1.04986836]
[1762847803535,0.50397234,104850.0,104840.0,1.34986836]
[1762847803732,0.50397234,104850.0,104840.0,1.16986836]
[1762847804543,0.59937814,104850.0,104840.0,0.94311612]
[1762847804733,0.59937814,104850.0,104840.0,0.92987068]
[1762847805144,0.59937814,104850.0,104840.0,0.82311834]
[1762847805441,0.59937814,104850.0,104840.0,0.94326356]
[1762847805939,0.59937814,104850.0,104840.0,0.82311834]
[1762847806142,0.50397234,104850.0,104840.0,0.82311834]
[1762847806343,0.59937814,104850.0,104840.0,0.92987068]
[1762847806735,0.59937814,104850.0,104840.0,0.46126498]
[1762847806932,0.59937814,104850.0,104840.0,0.72921008]
[1762847807337,0.59937814,104850.0,104840.0,0.82462498]
[1762847807739,0.59937814,104850.0,104840.0,0.72921008]
[1762847807943,0.59937814,104850.0,104840.0,0.82462498]
[1762847808445,0.59937814,104850.0,104840.0,0.84788498]
[1762847808839,0.59937814,104850.0,104840.0,0.72773945]
[1762847809545,0.50397234,104850.0,104840.0,0.72773945]
[1762847810138,0.59937814,104850.0,104840.0,0.72773945]
[1762847810841,0.59937814,104850.0,104840.0,0.36437945]
[1762847811243,0.70613048,104850.0,104840.0,0.08069487]
[1762847811447,0.70613048,104850.0,104840.0,0.17610977]
[1762847811649,0.70613048,104850.0,104840.0,0.2962553]
[1762847811851,0.70613048,104850.0,104840.0,0.2008404]